fUSD/lending_fUSD_20240119
["ID","MTS","AMOUNT","RATE_DAILY","PERIOD"]
[312132195,1705666248067,-500.0,0.00022995,2]
[312132196,1705666248079,-515.57232381,0.00022995,2]
[312132197,1705666248090,-2320.43,0.00022995,2]
[312132198,1705666248101,-500.0,0.00022995,2]
[312132199,1705666248113,-500.0,0.00022995,2]
[312132200,1705666248123,-500.0,0.00022995,2]
[312132201,1705666248134,-500.0,0.00022995,2]
[312132202,1705666248146,-5976.03,0.00022995,2]
[312132203,1705666248157,-500.0,0.00022995,2]
[312132204,1705666248170,-500.0,0.00022995,2]
[312132205,1705666248181,-1820.94,0.00022995,2]
[312132206,1705666248194,-823.03,0.00022995,2]
[312132207,1705666248205,-500.0,0.00022995,2]
[312132208,1705666248216,-500.0,0.00022995,2]
[312132209,1705666248227,-500.0,0.00022995,2]
[312132210,1705666248240,-500.0,0.00022995,2]
[312132211,1705666248251,-500.0,0.00022995,2]
[312132212,1705666248263,-500.0,0.00022995,2]
[312132213,1705666248274,-500.0,0.00022995,2]
[312132214,1705666248286,-505.81,0.00022995,2]
[312132215,1705666248298,-1021.23,0.00022995,2]
[312132216,1705666248310,-645.27,0.00022995,2]
[312132217,1705666248321,-796.93,0.00022995,2]
[312132218,1705666248333,-500.0,0.00022995,2]
[312132219,1705666248345,-500.0,0.00022995,2]
[312132220,1705666248356,-500.0,0.00022995,2]
[312132221,1705666248367,-500.0,0.00022995,2]
[312132222,1705666248378,-500.0,0.00022995,2]
[312132223,1705666248390,-500.0,0.00022995,2]
[312132224,1705666248402,-1032.88,0.00022995,2]
[312132225,1705666248413,-500.0,0.00022995,2]
[312132226,1705666248424,-500.0,0.00022995,2]
[312132227,1705666248435,-500.0,0.00022995,2]
[312132228,1705666248447,-500.0,0.00022995,2]
[312132229,1705666248458,-500.0,0.00022995,2]
[312132230,1705666248470,-560.11,0.00022995,2]
[312132231,1705666248481,-1063.08,0.00022995,2]
[312132232,1705666248492,-978.62,0.00022995,2]
[312132233,1705666248504,-500.0,0.00022995,2]
[312132234,1705666248517,-3550.01,0.00022995,2]
[312132235,1705666248528,-504.62798929,0.00022995,2]
[312132236,1705666248540,-500.0,0.00022995,2]
[312132237,1705666248554,-500.0,0.00022995,2]
[312132238,1705666248565,-500.0,0.00022995,2]
[312132239,1705666248578,-804.89,0.00022995,2]
[312132240,1705666248590,-500.0,0.00022995,2]
[312132241,1705666248602,-500.0,0.00022995,2]
[312132242,1705666248612,-500.0,0.00022995,2]
[312132243,1705666248625,-500.0,0.00022995,2]
[312132244,1705666248636,-500.0,0.00022995,2]
[312132245,1705666248649,-504.46688153,0.00022995,2]
[312132246,1705666248661,-964.83,0.00022995,2]
[312132247,1705666248673,-1091.51,0.00022995,2]
[312132248,1705666248684,-503.97799902,0.00022995,2]
[312132249,1705666248696,-500.0,0.00022995,2]
[312132250,1705666248708,-758.43,0.00022995,2]
[312132251,1705666248719,-500.0,0.00022995,2]
[312132252,1705666248731,-11177.61,0.00022995,2]
[312132253,1705666248743,-705.91,0.00022995,2]
[312132254,1705666248755,-500.0,0.00022995,2]
[312132255,1705666248767,-817.94,0.00022995,2]
[312132256,1705666248778,-500.0,0.00022995,2]
[312132257,1705666248790,-294.98045603,0.00022995,2]
[312132258,1705666248802,-500.0,0.00022995,2]
[312132259,1705666248813,-505.55746454,0.00022995,2]
[312132260,1705666248825,-519.28701598,0.00022995,2]
[312132261,1705666248837,-500.0,0.00022995,2]
[312132262,1705666248849,-500.0,0.00022995,2]
[312132263,1705666248861,-1738.46,0.00022995,2]
[312132264,1705666248873,-500.0,0.00022995,2]
[312132265,1705666248885,-614.60995269,0.00022995,2]
[312132266,1705666248897,-500.0,0.00022995,2]
[312132267,1705666248910,-500.0,0.00022995,2]
[312132268,1705666248921,-500.0,0.00022995,2]
[312132269,1705666248933,-500.0,0.00022995,2]
[312132270,1705666248947,-500.0,0.00022995,2]
[312132271,1705666248958,-500.0,0.00022995,2]
[312132272,1705666248970,-609.36,0.00022995,2]
[312132273,1705666248982,-500.0,0.00022995,2]
[312132274,1705666248992,-503.0356236,0.00022995,2]
[312132275,1705666249003,-500.0,0.00022995,2]
[312132276,1705666249015,-1056.96,0.00022995,2]
[312132277,1705666249026,-806.41,0.00022995,2]
[312132278,1705666249038,-500.0,0.00022995,2]
[312132279,1705666249048,-500.0,0.00022995,2]
[312132280,1705666249060,-7058.53,0.00022995,2]
[312132281,1705666249071,-500.0,0.00022995,2]
[312132282,1705666249083,-500.0,0.00022995,2]
[312132283,1705666249094,-500.0,0.00022995,2]
[312132284,1705666249106,-500.0,0.00022995,2]
[312132285,1705666249118,-500.0,0.00022995,2]
[312132286,1705666249129,-500.0,0.00022995,2]
[312132287,1705666249140,-500.0,0.00022995,2]
[312132288,1705666249151,-500.0,0.00022995,2]
[312132289,1705666249163,-500.0,0.00022995,2]
[312132290,1705666249175,-500.0,0.00022995,2]
[312132291,1705666249186,-500.0,0.00022995,2]
[312132292,1705666249197,-500.0,0.00022995,2]
[312132293,1705666249209,-500.0,0.00022995,2]
[312132294,1705666249221,-500.0,0.00022995,2]
[312132295,1705666249232,-504.63087933,0.00022995,2]
[312132296,1705666249244,-500.0,0.00022995,2]
[312132297,1705666249255,-500.0,0.00022995,2]
[312132298,1705666249267,-500.0,0.00022995,2]
[312132299,1705666249278,-729.56,0.00022995,2]
[312132300,1705666249289,-519.25408361,0.00022995,10]
[312132301,1705666249299,-508.11442773,0.00022995,2]
[312132302,1705666249309,-500.0,0.00022995,2]
[312132303,1705666249321,-500.0,0.00022995,2]
[312132304,1705666249332,-500.0,0.00022995,2]
[312132305,1705666249343,-3169.29,0.00022995,2]
[312132306,1705666249355,-500.0,0.00022995,2]
[312132307,1705666249367,-1141.43,0.00022995,2]
[312132308,1705666249379,-500.0,0.00022995,2]
[312132309,1705666249390,-500.0,0.00022995,2]
[312132310,1705666249402,-2249.61,0.00022995,2]
[312132311,1705666249414,-500.0,0.00022995,2]
[312132312,1705666249426,-500.0,0.00022995,2]
[312132313,1705666249437,-1700.24,0.00022995,2]
[312132314,1705666249448,-501.31037748,0.00022995,2]
[312132315,1705666249463,-500.0,0.00022995,2]
[312132316,1705666249474,-500.0,0.00022995,2]
[312132317,1705666249485,-500.0,0.00022995,2]
[312132318,1705666249497,-513.40157691,0.00022995,2]
[312132319,1705666249509,-500.0,0.00022995,2]
[312132320,1705666249521,-579.44,0.00022995,2]
[312132321,1705666249533,-500.0,0.00022995,2]
[312132322,1705666249544,-500.0,0.00022995,2]
[312132323,1705666249555,-500.0,0.00022995,2]
[312132324,1705666249566,-504.17416928,0.00022995,2]
[312132325,1705666249577,-2381.28,0.00022995,2]
[312132326,1705666249591,-500.0,0.00022995,2]
[312132327,1705666249602,-1446.94,0.00022995,2]
[312132328,1705666249613,-500.0,0.00022995,2]
[312132329,1705666249626,-500.0,0.00022995,2]
[312132330,1705666249637,-500.0,0.00022995,2]
[312132331,1705666249649,-500.0,0.00022995,2]
[312132332,1705666249661,-4056.5,0.00022995,2]
[312132333,1705666249673,-500.0,0.00022995,2]
[312132334,1705666249685,-500.0,0.00022995,2]
[312132335,1705666249697,-500.0,0.00022995,2]
[312132336,1705666249709,-500.0,0.00022995,2]
[312132337,1705666249720,-500.0,0.00022995,2]
[312132338,1705666249733,-500.0,0.00022995,2]
[312132339,1705666249744,-500.0,0.00022995,2]
[312132340,1705666249756,-2985.9,0.00022995,2]
[312132341,1705666249769,-500.0,0.00022995,2]
[312132342,1705666249782,-696.64,0.00022995,2]
[312132343,1705666249793,-404.31108543,0.00022995,2]
[312132344,1705666249805,-500.0,0.00022995,2]
[312132345,1705666249818,-500.0,0.00022995,2]
[312132346,1705666249830,-500.0,0.00022995,2]
[312132347,1705666249844,-4455.73,0.00022995,2]
[312132348,1705666249856,-500.0,0.00022995,2]
[312132349,1705666249870,-500.0,0.00022995,2]
[312132350,1705666249883,-994.17,0.00022995,2]
[312132351,1705666249894,-698.84,0.00022995,2]
[312132352,1705666249905,-503.24028767,0.00022995,2]
[312132353,1705666249916,-500.0,0.00022995,2]
[312132354,1705666249928,-500.0,0.00022995,2]
[312132355,1705666249939,-1513.75,0.00022995,2]
[312132356,1705666249950,-500.0,0.00022995,2]
[312132357,1705666249960,-2003.87,0.00022995,2]
[312132358,1705666249973,-500.0,0.00022995,2]
[312132359,1705666249984,-500.0,0.00022995,2]
[312132360,1705666249995,-500.0,0.00022995,2]
[312132361,1705666250007,-206.2748671,0.00022995,2]
[312132362,1705666250018,-748.63,0.00022995,2]
[312132363,1705666250029,-500.0,0.00022995,2]
[312132364,1705666250039,-902.53,0.00022996,2]
[312132365,1705666250050,-703.38,0.00022996,2]
[312132366,1705666250062,-979.41,0.00022996,2]
[312132367,1705666250075,-631.03,0.00022996,2]
[312132368,1705666250088,-500.0,0.00022996,2]
[312132369,1705666250099,-529.79,0.00022996,2]
[312132370,1705666250111,-507.27,0.00022996,2]
[312132371,1705666250123,-594.0,0.00022996,2]
[312132372,1705666250134,-604.23,0.00022996,2]
[312132373,1705666250145,-500.0,0.00022996,2]
[312132374,1705666250156,-1297.18,0.00022996,2]
[312132375,1705666250166,-2265.29,0.00022996,2]
[312132376,1705666250178,-562.89,0.00022996,2]
[312132377,1705666250188,-500.0,0.00022996,2]
[312132378,1705666250200,-500.0,0.00022996,2]
[312132379,1705666250210,-505.74746107,0.00022996,2]
[312132380,1705666250222,-500.0,0.00022996,2]
[312132381,1705666250233,-990.94,0.00022996,2]
[312132382,1705666250245,-614.26,0.00022996,2]
[312132383,1705666250256,-735.83,0.00022996,2]
[312132384,1705666250267,-856.19,0.00022996,2]
[312132385,1705666250279,-1419.84,0.00022996,2]
[312132386,1705666250290,-500.0,0.00022996,2]
[312132387,1705666250302,-679.32,0.00022996,2]
[312132388,1705666250312,-680.33,0.00022996,2]
[312132389,1705666250323,-614.57,0.00022996,2]
[312132390,1705666250335,-1063.63,0.00022996,2]
[312132391,1705666250345,-1592.94,0.00022996,2]
[312132392,1705666250357,-528.70205297,0.00022996,2]
[312132393,1705666250369,-500.0,0.00022996,2]
[312132394,1705666250380,-500.0,0.00022996,2]
[312132395,1705666250391,-727.17,0.00022996,2]
[312132396,1705666250403,-903.46,0.00022996,2]
[312132397,1705666250415,-500.0,0.00022996,2]
[312132398,1705666250426,-500.0,0.00022996,2]
[312132399,1705666250438,-500.0,0.00022996,2]
[312132400,1705666250449,-500.0,0.00022996,2]
[312132401,1705666250460,-500.0,0.00022996,2]
[312132402,1705666250471,-1089.66,0.00022996,2]
[312132403,1705666250483,-617.46,0.00022996,2]
[312132404,1705666250495,-1111.8,0.00022996,2]
[312132405,1705666250506,-500.0,0.00022996,2]
[312132406,1705666250517,-1453.62,0.00022996,2]
[312132407,1705666250529,-637.4,0.00022996,2]
[312132408,1705666250540,-500.0,0.00022996,2]
[312132409,1705666250552,-500.0,0.00022996,2]
[312132410,1705666250563,-500.0,0.00022996,2]
[312132411,1705666250580,-1203.6,0.00022996,2]
[312132412,1705666250855,-1735.78,0.00022996,2]
[312132413,1705666250866,-500.0,0.00022996,2]
[312132414,1705666250879,-500.0,0.00022996,2]
[312132415,1705666250890,-500.0,0.00022996,2]
[312132416,1705666250901,-500.0,0.00022996,2]
[312132417,1705666250913,-1641.44,0.00022996,2]
[312132418,1705666250923,-500.0,0.00022996,2]
[312132419,1705666250935,-522.53,0.00022996,2]
[312132420,1705666250946,-1160.79,0.00022996,2]
[312132421,1705666250957,-1647.35,0.00022996,2]
[312132422,1705666250969,-500.0,0.00022996,2]
[312132423,1705666250982,-837.65,0.00022996,2]
[312132424,1705666250993,-500.0,0.00022996,2]
[312132425,1705666251005,-1818.93,0.00022996,2]
[312132426,1705666251016,-1042.11,0.00022996,2]
[312132427,1705666251028,-2027.65,0.00022996,2]
[312132428,1705666251039,-500.0,0.00022996,2]
[312132429,1705666251051,-500.0,0.00022996,2]
[312132430,1705666251062,-981.43,0.00022996,2]
[312132431,1705666251073,-500.0,0.00022996,2]
[312132432,1705666251085,-1018.32,0.00022996,2]
[312132433,1705666251098,-340.57147242,0.00022996,2]
[312132434,1705666251109,-3340.96,0.00022996,2]
[312132435,1705666251121,-981.57,0.00022996,2]
[312132436,1705666251132,-304.22941094,0.00022996,2]
[312132437,1705666251144,-6001.65,0.00022996,2]
[312132438,1705666251156,-924.24,0.00022996,2]
[312132439,1705666251167,-500.0,0.00022996,2]
[312132440,1705666251179,-1152.74,0.00022996,2]
[312132441,1705666251191,-500.0,0.00022996,2]
[312132442,1705666251202,-500.0,0.00022996,2]
[312132443,1705666251213,-500.0,0.00022996,2]
[312132444,1705666251224,-1251.53,0.00022996,2]
[312132445,1705666251236,-500.0,0.00022996,2]
[312132446,1705666251246,-1651.82,0.00022996,2]
[312132447,1705666251257,-500.0,0.00022996,2]
[312132448,1705666251269,-502.82,0.00022996,2]
[312132449,1705666251280,-609.46,0.00022996,2]
[312132450,1705666251291,-1979.16,0.00022996,2]
[312132451,1705666251303,-500.0,0.00022996,2]
[312132452,1705666251314,-500.0,0.00022996,2]
[312132453,1705666251325,-1430.36,0.00022996,2]
[312132454,1705666251336,-542.04,0.00022996,2]
[312132455,1705666251347,-9723.53,0.00022996,2]
[312132456,1705666251359,-4403.92,0.00022996,2]
[312132457,1705666251371,-982.89,0.00022996,2]
[312132458,1705666251382,-1318.74,0.00022996,2]
[312132459,1705666251394,-646.54,0.00022996,2]
[312132460,1705666251405,-4083.32,0.00022996,2]
[312132461,1705666251417,-1199.37,0.00022996,2]
[312132462,1705666251428,-500.0,0.00022996,2]
[312132463,1705666251439,-500.0,0.00022996,2]
[312132464,1705666251451,-716.72,0.00022996,2]
[312132465,1705666251465,-875.53,0.00022996,2]
[312132466,1705666251478,-17230.42,0.00022996,2]
[312132467,1705666251490,-500.0,0.00022996,2]
[312132468,1705666251501,-836.21,0.00022996,2]
[312132469,1705666251512,-753.81,0.00022996,2]
[312132470,1705666251523,-3033.73,0.00022996,2]
[312132471,1705666251535,-500.0,0.00022996,2]
[312132472,1705666251546,-4579.41,0.00022996,2]
[312132473,1705666251557,-500.0,0.00022996,2]
[312132474,1705666251569,-811.94,0.00022996,2]
[312132475,1705666251581,-6926.76,0.00022996,2]
[312132476,1705666251596,-500.0,0.00022996,2]
[312132477,1705666251610,-1707.03,0.00022996,2]
[312132478,1705666251623,-1650.31,0.00022996,2]
[312132479,1705666251633,-5046.73,0.00022996,2]
[312132480,1705666251645,-2778.35,0.00022996,2]
[312132481,1705666251656,-1008.17,0.00022996,2]
[312132482,1705666251668,-500.0,0.00022996,2]
[312132483,1705666251680,-5761.46,0.00022996,2]
[312132484,1705666251695,-830.39,0.00022996,2]
[312132485,1705666251707,-500.0,0.00022996,2]
[312132486,1705666251719,-1035.37,0.00022996,2]
[312132487,1705666251731,-1166.82,0.00022996,2]
[312132488,1705666251742,-520.25,0.00022996,2]
[312132489,1705666251753,-11508.39,0.00022996,2]
[312132490,1705666251765,-730.77,0.00022996,2]
[312132491,1705666251777,-1529.43,0.00022996,2]
[312132492,1705666251789,-602.34,0.00022996,2]
[312132493,1705666251801,-2801.61,0.00022996,2]
[312132494,1705666251812,-596.08,0.00022996,2]
[312132495,1705666251824,-847.54,0.00022996,2]
[312132496,1705666251835,-500.0,0.00022996,2]
[312132497,1705666251846,-1217.77,0.00022996,2]
[312132498,1705666251859,-1307.02,0.00022996,2]
[312132499,1705666251871,-1964.39,0.00022996,2]
[312132500,1705666251882,-726.13,0.00022996,2]
[312132501,1705666251894,-2317.69,0.00022996,2]
[312132502,1705666251906,-2438.45,0.00022996,2]
[312132503,1705666251918,-1132.89,0.00022996,2]
[312132504,1705666251930,-500.0,0.00022996,2]
[312132505,1705666251941,-2244.99,0.00022996,2]
[312132506,1705666251952,-2276.25,0.00022996,2]
[312132507,1705666251963,-500.0,0.00022996,2]
[312132508,1705666251975,-2345.08,0.00022996,2]
[312132509,1705666251986,-1779.06,0.00022996,2]
[312132510,1705666251998,-1247.58,0.00022996,2]
[312132511,1705666252010,-1265.86,0.00022996,2]
[312132512,1705666252022,-4824.73,0.00022996,2]
[312132513,1705666252033,-1351.04,0.00022996,2]
[312132514,1705666252045,-338.14534131,0.00022996,2]
[312132515,1705666252055,-500.0,0.00022997,2]
[312132516,1705666252067,-564.91,0.00022997,2]
[312132517,1705666252079,-500.0,0.00022997,2]
[312132518,1705666252091,-500.0,0.00022997,2]
[312132519,1705666252103,-500.0,0.00022997,2]
[312132520,1705666252114,-500.0,0.00022997,2]
[312132521,1705666252126,-500.0,0.00022997,2]
[312132522,1705666252136,-502.41,0.00022997,2]
[312132523,1705666252147,-568.67,0.00022997,2]
[312132524,1705666252159,-500.0,0.00022997,2]
[312132525,1705666252170,-500.0,0.00022997,2]
[312132526,1705666252182,-500.0,0.00022997,2]
[312132527,1705666252193,-500.0,0.00022997,2]
[312132528,1705666252205,-500.0,0.00022997,2]
[312132529,1705666252216,-500.0,0.00022997,2]
[312132530,1705666252229,-500.0,0.00022997,2]
[312132531,1705666252240,-500.0,0.00022997,2]
[312132532,1705666252252,-500.0,0.00022997,2]
[312132533,1705666252263,-500.0,0.00022997,2]
[312132534,1705666252275,-500.0,0.00022997,2]
[312132535,1705666252286,-164.48913565,0.00022997,2]
[312132536,1705666252298,-500.0,0.00022997,2]
[312132537,1705666252309,-500.0,0.00022997,2]
[312132538,1705666252320,-592.24668988,0.00022997,2]
[312132539,1705666252332,-500.0,0.00022997,2]
[312132540,1705666252343,-579.96,0.00022997,2]
[312132541,1705666252355,-521.95353541,0.00022997,2]
[312132542,1705666252365,-500.0,0.00022997,2]
[312132543,1705666252378,-505.34070597,0.00022997,2]
[312132544,1705666252390,-514.75,0.00022997,2]
[312132545,1705666252401,-500.0,0.00022997,2]
[312132546,1705666252413,-501.55173842,0.00022997,2]
[312132547,1705666252425,-842.5,0.00022997,2]
[312132548,1705666252436,-511.50776126,0.00022997,2]
[312132549,1705666252448,-503.62699776,0.00022997,2]
[312132550,1705666252460,-500.0,0.00022997,2]
[312132551,1705666252472,-500.0,0.00022997,2]
[312132552,1705666252483,-500.0,0.00022997,2]
[312132553,1705666252494,-500.0,0.00022997,2]
[312132554,1705666252506,-500.0,0.00022997,2]
[312132555,1705666252517,-500.0,0.00022997,2]
[312132556,1705666252529,-500.0,0.00022997,2]
[312132557,1705666252736,-500.0,0.00022997,2]
[312132558,1705666252748,-500.0,0.00022997,2]
[312132559,1705666252760,-500.0,0.00022997,2]
[312132560,1705666252771,-505.28152152,0.00022997,2]
[312132561,1705666252784,-500.0,0.00022997,2]
[312132562,1705666252795,-639.73,0.00022997,2]
[312132563,1705666252808,-1003.11,0.00022997,2]
[312132564,1705666252820,-503.59644269,0.00022997,2]
[312132565,1705666252832,-500.0,0.00022997,2]
[312132566,1705666252844,-500.0,0.00022997,2]
[312132567,1705666252855,-500.0,0.00022997,2]
[312132568,1705666252868,-500.0,0.00022997,2]
[312132569,1705666252879,-523.41918366,0.00022997,2]
[312132570,1705666252890,-500.0,0.00022997,2]
[312132571,1705666252901,-500.0,0.00022997,2]
[312132572,1705666252913,-500.0,0.00022997,2]
[312132573,1705666252925,-500.0,0.00022997,2]
[312132574,1705666252936,-500.0,0.00022997,2]
[312132575,1705666252948,-535.8612713,0.00022997,2]
[312132576,1705666252959,-500.0,0.00022997,2]
[312132577,1705666252971,-500.0,0.00022997,2]
[312132578,1705666252982,-501.29740913,0.00022997,2]
[312132579,1705666252993,-500.0,0.00022997,2]
[312132580,1705666253004,-500.0,0.00022997,2]
[312132581,1705666253015,-500.0,0.00022997,2]
[312132582,1705666253027,-500.0,0.00022997,2]
[312132583,1705666253038,-500.0,0.00022997,2]
[312132584,1705666253050,-500.0,0.00022997,2]
[312132585,1705666253060,-500.0,0.00022997,2]
[312132586,1705666253070,-486.99338425,0.00022997,2]
[312132587,1705666253082,-500.0,0.00022997,2]
[312132588,1705666253094,-500.0,0.00022997,2]
[312132589,1705666253106,-500.0,0.00022997,2]
[312132590,1705666253117,-500.0,0.00022997,2]
[312132591,1705666253130,-500.0,0.00022997,2]
[312132592,1705666253142,-520.06,0.00022997,2]
[312132593,1705666253154,-507.75551204,0.00022997,2]
[312132594,1705666253165,-522.38,0.00022997,2]
[312132595,1705666253176,-488.31550237,0.00022997,2]
[312132596,1705666253187,-951.95,0.00022997,2]
[312132597,1705666253198,-500.0,0.00022997,2]
[312132598,1705666253209,-500.0,0.00022997,2]
[312132599,1705666253220,-500.0,0.00022997,2]
[312132600,1705666253231,-500.0,0.00022997,2]
[312132601,1705666253243,-504.59812764,0.00022997,2]
[312132602,1705666253254,-500.0,0.00022997,2]
[312132603,1705666253264,-500.0,0.00022997,2]
[312132604,1705666253276,-500.0,0.00022997,2]
[312132605,1705666253287,-500.0,0.00022997,2]
[312132606,1705666253297,-500.0,0.00022997,2]
[312132607,1705666253308,-500.0,0.00022997,2]
[312132608,1705666253319,-500.0,0.00022997,2]
[312132609,1705666253330,-500.0,0.00022997,2]
[312132610,1705666253342,-500.0,0.00022997,2]
[312132611,1705666253354,-506.77059108,0.00022997,2]
[312132612,1705666253365,-500.0,0.00022997,2]
[312132613,1705666253378,-500.0,0.00022997,2]
[312132614,1705666253389,-507.58266224,0.00022997,2]
[312132615,1705666253401,-500.0,0.00022997,2]
[312132616,1705666253412,-500.0,0.00022997,2]
[312132617,1705666253425,-1016.97,0.00022997,2]
[312132618,1705666253436,-500.0,0.00022997,2]
[312132619,1705666253448,-500.0,0.00022997,2]
[312132620,1705666253460,-500.0,0.00022997,2]
[312132621,1705666253471,-500.0,0.00022997,2]
[312132622,1705666253488,-501.95614844,0.00022997,2]
[312132623,1705666253499,-500.0,0.00022997,2]
[312132624,1705666253511,-512.9749951,0.00022997,2]
[312132625,1705666253522,-500.0,0.00022997,2]
[312132626,1705666253533,-500.0,0.00022997,2]
[312132627,1705666253547,-500.0,0.00022997,2]
[312132628,1705666253558,-500.0,0.00022997,2]
[312132629,1705666253570,-500.0,0.00022997,2]
[312132630,1705666253665,-500.0,0.00022997,2]
[312132631,1705666253678,-500.0,0.00022997,2]
[312132632,1705666253689,-500.0,0.00022997,2]
[312132633,1705666253701,-500.0,0.00022997,2]
[312132634,1705666253713,-503.74491359,0.00022997,2]
[312132635,1705666253725,-742.91,0.00022997,2]
[312132636,1705666253737,-500.59096868,0.00022997,2]
[312132637,1705666253749,-500.0,0.00022997,2]
[312132638,1705666253761,-505.75069581,0.00022997,2]
[312132639,1705666253774,-500.0,0.00022997,2]
[312132640,1705666253785,-500.0,0.00022997,2]
[312132641,1705666253796,-500.0,0.00022997,2]
[312132642,1705666253807,-500.0,0.00022997,2]
[312132643,1705666253818,-500.0,0.00022997,2]
[312132644,1705666253830,-500.0,0.00022997,2]
[312132645,1705666253842,-500.0,0.00022997,2]
[312132646,1705666253853,-625.1,0.00022997,2]
[312132647,1705666253865,-500.0,0.00022997,2]
[312132648,1705666253882,-500.0,0.00022997,2]
[312132649,1705666253892,-500.0,0.00022997,2]
[312132650,1705666253903,-500.0,0.00022997,2]
[312132651,1705666253915,-500.0,0.00022997,2]
[312132652,1705666253925,-506.79814348,0.00022997,2]
[312132653,1705666253936,-505.45441617,0.00022997,2]
[312132654,1705666253947,-538.32,0.00022997,2]
[312132655,1705666253958,-500.0,0.00022997,2]
[312132656,1705666253969,-500.0,0.00022997,2]
[312132657,1705666253981,-536.45,0.00022997,2]
[312132658,1705666253993,-661.07,0.00022997,2]
[312132659,1705666254005,-500.0,0.00022997,2]
[312132660,1705666254018,-500.0,0.00022997,2]
[312132661,1705666254029,-500.0,0.00022997,2]
[312132662,1705666254041,-500.0,0.00022997,2]
[312132663,1705666254052,-500.0,0.00022997,2]
[312132664,1705666254064,-500.0,0.00022997,2]
[312132665,1705666254077,-501.35,0.00022997,2]
[312132666,1705666254088,-500.0,0.00022997,2]
[312132667,1705666254100,-500.0,0.00022997,2]
[312132668,1705666254111,-500.0,0.00022997,2]
[312132669,1705666254124,-502.08146097,0.00022997,2]
[312132670,1705666254135,-500.0,0.00022997,2]
[312132671,1705666254146,-500.0,0.00022997,2]
[312132672,1705666254157,-500.0,0.00022997,2]
[312132673,1705666254167,-500.0,0.00022997,2]
[312132674,1705666254180,-505.27,0.00022997,2]
[312132675,1705666254191,-500.0,0.00022997,2]
[312132676,1705666254202,-511.58017715,0.00022997,2]
[312132677,1705666254213,-500.0,0.00022997,2]
[312132678,1705666254225,-500.0,0.00022997,2]
[312132679,1705666254236,-188.02828498,0.00022997,2]
[312132680,1705666254247,-500.0,0.00022997,2]
[312132681,1705666254259,-500.0,0.00022997,2]
[312132682,1705666254270,-1361.89,0.00022997,2]
[312132683,1705666254281,-500.0,0.00022997,2]
[312132684,1705666254294,-500.0,0.00022997,2]
[312132685,1705666254305,-500.0,0.00022997,2]
[312132686,1705666254316,-500.0,0.00022997,2]
[312132687,1705666254327,-500.0,0.00022997,2]
[312132688,1705666254338,-930.39,0.00022997,2]
[312132689,1705666254350,-308.23841014,0.00022997,2]
[312132690,1705666254361,-500.0,0.00022997,2]
[312132691,1705666254373,-500.0,0.00022997,2]
[312132692,1705666254385,-500.0,0.00022997,2]
[312132693,1705666254396,-500.0,0.00022997,2]
[312132694,1705666254408,-500.0,0.00022997,2]